fUSD/lending_fUSD_20260617
["ID","MTS","AMOUNT","RATE_DAILY","PERIOD"]
[425238211,1781631043000,-301.06748373,0.00023,2]
[425238213,1781631043000,-586.0,0.00023,2]
[425238212,1781631043000,-212.0,0.00023,2]
[425238210,1781631043000,-4444.0,0.00023,2]
[425238216,1781631043000,-3137.121096,0.00023,2]
[425238225,1781631043000,-2000.0,0.00023,7]
[425238203,1781631043000,-310.0,0.000225,2]
[425238241,1781631043000,-500.0,0.00024,2]
[425238220,1781631043000,-2151.0,0.00023,2]
[425238247,1781631043000,-3108.0,0.00024,2]
[425238280,1781631043000,-1798.373041,0.00024658,2]
[425238283,1781631043000,-1798.373041,0.00024658,2]
[425238282,1781631043000,-1798.373041,0.00024658,2]
[425238284,1781631043000,-703.09,0.00024658,2]
[425238287,1781631043000,-407.671554,0.00024658,2]
[425238281,1781631043000,-1798.373041,0.00024658,2]
[425238292,1781631043000,-2236.95670847,0.00024725,2]
[425238289,1781631043000,-3646.0,0.00024676,2]
[425238286,1781631043000,-407.671554,0.00024658,2]
[425238290,1781631043000,-151.0,0.00024725,2]
[425238285,1781631043000,-407.671554,0.00024658,2]
[425238291,1781631043000,-200.0,0.00024725,2]
[425238273,1781631043000,-456.976504,0.00024658,2]
[425238288,1781631043000,-407.671554,0.00024658,2]
[425238294,1781631043000,-859.0,0.00024918,5]
[425238293,1781631043000,-500.0,0.00024769,2]
[425238295,1781631043000,-2500.0,0.00024952,2]
[425238296,1781631043000,-950.0,0.00024952,2]
[425238297,1781631043000,-1350.0,0.00024952,30]
[425238298,1781631043000,-3625.0,0.00025,2]
[425238301,1781631043000,-629.86089109,0.00025,5]
[425238300,1781631043000,-41027.98923796,0.00025,7]
[425238299,1781631043000,-4347.17820744,0.00025,2]
[425238302,1781631043000,-300.99735809,0.00025,14]
[425238303,1781631043000,-1005.49960531,0.00025,2]
[425238246,1781631043000,-2151.0,0.00024,2]
[425238304,1781631043000,-565391.3463081,0.00025,2]
[425238270,1781631043000,-151.0,0.00024658,2]
[425238230,1781631043000,-150.0,0.0002326,21]
[425238274,1781631043000,-456.976504,0.00024658,2]
[425238251,1781631043000,-150.0,0.00024,2]
[425238275,1781631043000,-456.976504,0.00024658,2]
[425238248,1781631043000,-400.0,0.00024,2]
[425238249,1781631043000,-398.0,0.00024,2]
[425238250,1781631043000,-990.0,0.00024,2]
[425238254,1781631043000,-500.0,0.00024048,2]
[425238256,1781631043000,-46936.7,0.00024174,2]
[425238264,1781631043000,-185.51,0.00024455,5]
[425238255,1781631043000,-411.4,0.00024051,2]
[425238257,1781631043000,-2661.19,0.00024174,2]
[425238258,1781631043000,-762.19,0.00024174,2]
[425238262,1781631043000,-2157.14243826,0.00024177,2]
[425238266,1781631043000,-2467.96,0.000246,7]
[425238261,1781631043000,-200.0,0.00024177,2]
[425238263,1781631043000,-250.0,0.00024455,5]
[425238269,1781631043000,-151.0,0.00024658,2]
[425238260,1781631043000,-151.0,0.00024177,2]
[425238272,1781631043000,-456.976504,0.00024658,2]
[425238278,1781631043000,-255.458441,0.00024658,2]
[425238279,1781631043000,-255.458441,0.00024658,2]
[425238277,1781631043000,-255.458441,0.00024658,2]
[425238271,1781631043000,-1000.0,0.00024658,2]
[425238267,1781631043000,-158.59,0.00024658,8]
[425238268,1781631043000,-151.0,0.00024658,2]
[425238265,1781631043000,-169.18137326,0.0002455,15]
[425238259,1781631043000,-1056.69,0.00024174,2]
[425238276,1781631043000,-255.458441,0.00024658,2]
[425238307,1781631045000,-665.0,0.00025,2]
[425238308,1781631045000,-6618.02726195,0.00025,2]
[425238306,1781631045000,-423.63652752,0.00025,2]
[425238305,1781631045000,-328.45,0.00025,2]
[425238317,1781631046000,-441.36251714,0.00025,2]
[425238312,1781631046000,-539.12117695,0.00025,2]
[425238313,1781631046000,-41460.56939987,0.00025,2]
[425238314,1781631046000,150.0,0.000149,2]
[425238325,1781631046000,-520.34523751,0.00025,2]
[425238316,1781631046000,-158.63748286,0.00024658,2]
[425238319,1781631046000,-339.37920016,0.00025,2]
[425238320,1781631046000,-765.6,0.00025,2]
[425238321,1781631046000,-918.61801989,0.00025,2]
[425238323,1781631046000,-615.55551412,0.00025,2]
[425238322,1781631046000,-545.59881329,0.00025,2]
[425238328,1781631046000,-2684.79048908,0.00025,2]
[425238326,1781631046000,-182.86,0.000173,7]
[425238327,1781631046000,-1136.02380595,0.00025,2]
[425238318,1781631046000,-957.5262027,0.00025,2]
[425238329,1781631050000,1244.7922,0.000149,2]
[425238332,1781631106000,3902.8773,0.00014899,2]
[425238334,1781631141000,990.9962,0.000149,2]
[425238335,1781631170000,166.66,0.00014837,2]
[425238336,1781631209000,824.201,0.000147,2]
[425238337,1781631230000,150.0,0.000149,2]
[425238340,1781631325000,-160.0,0.0001497,2]
[425238338,1781631325000,-600.0,0.00014961,2]
[425238339,1781631325000,-200.0,0.00014961,2]
[425238358,1781631326000,-500.0,0.00014999,2]
[425238356,1781631326000,-500.0,0.00014999,2]
[425238355,1781631326000,-500.0,0.00014999,2]
[425238354,1781631326000,-500.0,0.00014999,2]
[425238357,1781631326000,-3000.0,0.00014999,2]
[425238353,1781631326000,-177.64532883,0.00014999,2]
[425238352,1781631326000,-500.0,0.00014999,2]
[425238350,1781631326000,-500.0,0.00014999,2]
[425238348,1781631326000,-500.0,0.00014999,2]
[425238349,1781631326000,-500.0,0.00014999,2]
[425238347,1781631326000,-500.0,0.00014999,2]
[425238346,1781631326000,-500.0,0.00014999,2]
[425238345,1781631326000,-500.0,0.00014999,2]
[425238342,1781631326000,-219.53109126,0.00014989,2]
[425238344,1781631326000,-499.62534988,0.00014989,2]
[425238343,1781631326000,-422.85388687,0.00014989,2]
[425238341,1781631326000,-600.0,0.00014984,2]
[425238351,1781631326000,-500.0,0.00014999,2]
[425238359,1781631326000,-500.0,0.00014999,2]
[425238361,1781631326000,-500.0,0.00014999,2]
[425238363,1781631326000,-500.0,0.00014999,2]
[425238380,1781631326000,-500.0,0.00014999,2]
[425238379,1781631326000,-500.0,0.00014999,2]
[425238376,1781631326000,-500.0,0.00014999,2]
[425238377,1781631326000,-500.0,0.00014999,2]
[425238378,1781631326000,-500.0,0.00014999,2]
[425238375,1781631326000,-500.0,0.00014999,2]
[425238360,1781631326000,-500.0,0.00014999,2]
[425238372,1781631326000,-500.0,0.00014999,2]
[425238374,1781631326000,-500.0,0.00014999,2]
[425238373,1781631326000,-500.0,0.00014999,2]
[425238371,1781631326000,-500.0,0.00014999,2]
[425238369,1781631326000,-500.0,0.00014999,2]
[425238367,1781631326000,-500.0,0.00014999,2]
[425238368,1781631326000,-500.0,0.00014999,2]
[425238365,1781631326000,-500.0,0.00014999,2]
[425238364,1781631326000,-500.0,0.00014999,2]
[425238362,1781631326000,-500.0,0.00014999,2]
[425238370,1781631326000,-500.0,0.00014999,2]
[425238366,1781631326000,-500.0,0.00014999,2]
[425238386,1781631327000,-500.0,0.00014999,2]
[425238382,1781631327000,-500.0,0.00014999,2]
[425238381,1781631327000,-500.0,0.00014999,2]
[425238383,1781631327000,-500.0,0.00014999,2]
[425238384,1781631327000,-500.0,0.00014999,2]
[425238385,1781631327000,-500.0,0.00014999,2]
[425238387,1781631327000,-500.0,0.00014999,2]
[425238390,1781631327000,-500.0,0.00014999,2]
[425238395,1781631327000,-500.0,0.00014999,2]
[425238393,1781631327000,-500.0,0.00014999,2]
[425238394,1781631327000,-530.89,0.00014999,2]
[425238388,1781631327000,-500.0,0.00014999,2]
[425238392,1781631327000,-500.0,0.00014999,2]
[425238391,1781631327000,-500.0,0.00014999,2]
[425238389,1781631327000,-500.0,0.00014999,2]
[425238396,1781631351000,151.0,0.0001496,2]
[425238397,1781631356000,151.0,0.0001496,2]
[425238398,1781631358000,151.0,0.0001496,2]
[425238399,1781631361000,151.0,0.0001496,2]
[425238401,1781631384000,500.0,0.00014999,2]
[425238400,1781631384000,500.0,0.00014999,2]
[425238402,1781631385000,500.0,0.00014999,2]
[425238403,1781631386000,500.0,0.00014999,2]
[425238404,1781631387000,500.0,0.00014999,2]
[425238405,1781631387000,636.56829417,0.00014999,2]
[425238406,1781631392000,216.13448155,0.00014984,2]
[425238409,1781631408000,500.0,0.00014999,2]
[425238408,1781631408000,500.0,0.00014999,2]
[425238407,1781631408000,500.0,0.00014999,2]
[425238414,1781631409000,592.15644965,0.00014999,2]
[425238413,1781631409000,500.0,0.00014999,2]
[425238412,1781631409000,500.0,0.00014999,2]
[425238411,1781631409000,500.0,0.00014999,2]
[425238410,1781631409000,500.0,0.00014999,2]
[425238415,1781631417000,249.43,0.000149,2]
[425238416,1781631427000,250.0,0.00014966,2]
[425238417,1781631427000,250.0,0.00014981,2]
[425238418,1781631428000,500.0,0.00014999,2]
[425238421,1781631429000,243.29635154,0.00014999,2]
[425238420,1781631429000,500.0,0.00014999,2]
[425238419,1781631429000,500.0,0.00014999,2]
[425238422,1781631430000,160.0140167,0.00014998,2]
[425238423,1781631431000,353.02916033,0.00014999,2]
[425238424,1781631433000,160.0,0.00014984,2]
[425238425,1781631443000,500.0,0.00014999,2]
[425238426,1781631451000,160.0,0.00014984,2]
[425238427,1781631490000,500.0,0.00014999,2]
[425238428,1781631491000,500.0,0.00014999,2]
[425238429,1781631492000,500.0,0.00014999,2]
[425238432,1781631492000,500.0,0.00014999,2]
[425238431,1781631492000,500.0,0.00014999,2]
[425238430,1781631492000,500.0,0.00014999,2]
[425238435,1781631493000,500.0,0.00014999,2]
[425238434,1781631493000,500.0,0.00014999,2]
[425238433,1781631493000,500.0,0.00014999,2]
[425238437,1781631494000,188.1,0.00014999,2]
[425238436,1781631494000,500.0,0.00014999,2]
[425238438,1781631499000,183.94218512,0.00014968,2]
[425238439,1781631601000,182.86,0.000149,2]
[425238440,1781631691000,500.0,0.00014999,2]
[425238441,1781631691000,500.0,0.00014999,2]
[425238442,1781631691000,500.0,0.00014999,2]
[425238443,1781631691000,500.0,0.00014999,2]
[425238444,1781631692000,500.0,0.00014999,2]
[425238445,1781631692000,328.84390757,0.00014999,2]
[425238448,1781631710000,500.0,0.00014999,2]
[425238447,1781631710000,500.0,0.00014999,2]
[425238446,1781631710000,500.0,0.00014999,2]
[425238452,1781631711000,500.0,0.00014999,2]
[425238451,1781631711000,500.0,0.00014999,2]
[425238450,1781631711000,500.0,0.00014999,2]
[425238449,1781631711000,500.0,0.00014999,2]
[425238453,1781631712000,500.0,0.00014999,2]
[425238454,1781631714000,500.0,0.00014999,2]
[425238455,1781631714000,500.0,0.00014999,2]
[425238457,1781631714000,500.0,0.00014999,2]
[425238456,1781631714000,500.0,0.00014999,2]
[425238460,1781631715000,215.71025722,0.00014999,2]
[425238459,1781631715000,500.0,0.00014999,2]
[425238458,1781631715000,500.0,0.00014999,2]
[425238461,1781631809000,500.0,0.00014999,2]
[425238464,1781631811000,500.0,0.00014999,2]
[425238462,1781631811000,500.0,0.00014999,2]
[425238465,1781631811000,500.0,0.00014999,2]
[425238463,1781631811000,500.0,0.00014999,2]
[425238466,1781631811000,500.0,0.00014999,2]
[425238468,1781631811000,500.0,0.00014999,2]
[425238467,1781631811000,500.0,0.00014999,2]
[425238469,1781631811000,500.0,0.00014999,2]
[425238470,1781631811000,500.0,0.00014999,2]
[425238471,1781631812000,500.0,0.00014999,2]
[425238473,1781631812000,500.0,0.00014999,2]
[425238472,1781631812000,500.0,0.00014999,2]
[425238477,1781631813000,500.0,0.00014999,2]
[425238476,1781631813000,500.0,0.00014999,2]
[425238475,1781631813000,500.0,0.00014999,2]
[425238474,1781631813000,500.0,0.00014999,2]
[425238478,1781631814000,500.0,0.00014999,2]
[425238479,1781631825000,183.9421851,0.00014965,2]
[425238480,1781631831000,183.9421851,0.0001502,2]
[425238482,1781631848000,594.9,0.00014999,2]
[425238481,1781631848000,594.9,0.00014999,2]
[425238486,1781631849000,594.9,0.00014999,2]
[425238485,1781631849000,594.9,0.00014999,2]
[425238483,1781631849000,594.9,0.00014999,2]
[425238484,1781631849000,594.9,0.00014999,2]
[425238489,1781631850000,594.9,0.00014999,2]
[425238488,1781631850000,594.9,0.00014999,2]
[425238487,1781631850000,594.9,0.00014999,2]
[425238492,1781631851000,594.9,0.00014999,2]
[425238491,1781631851000,594.9,0.00014999,2]
[425238490,1781631851000,594.9,0.00014999,2]
[425238493,1781631852000,594.9,0.00014999,2]
[425238495,1781631852000,594.9,0.00014999,2]
[425238494,1781631852000,594.9,0.00014999,2]
[425238496,1781631853000,594.9,0.00014999,2]
[425238497,1781631853000,594.9,0.00014999,2]
[425238499,1781631854000,594.9,0.00014999,2]
[425238498,1781631854000,594.9,0.00014999,2]
[425238502,1781631855000,594.9,0.00014999,2]
[425238501,1781631855000,594.9,0.00014999,2]
[425238500,1781631855000,594.9,0.00014999,2]
[425238504,1781631856000,595.08,0.00014999,2]
[425238503,1781631856000,594.9,0.00014999,2]
[425238505,1781631863000,350.0,0.00014906,2]
[425238506,1781631889000,500.0,0.00014999,2]
[425238511,1781631890000,500.0,0.00014999,2]
[425238510,1781631890000,1779.9,0.00013871,2]
[425238509,1781631890000,500.0,0.00014999,2]
[425238508,1781631890000,500.0,0.00014999,2]
[425238507,1781631890000,500.0,0.00014999,2]
[425238512,1781631891000,500.0,0.00014999,2]
[425238514,1781631891000,500.0,0.00014999,2]
[425238513,1781631891000,500.0,0.00014999,2]
[425238515,1781631892000,500.0,0.00014999,2]
[425238516,1781631892000,428.52111193,0.00014999,2]
[425238517,1781631899000,500.0,0.00014999,2]
[425238518,1781631900000,500.0,0.00014999,2]
[425238519,1781631908000,200.0,0.0001502,2]
[425238520,1781632177000,10017.0419,0.0001502,2]
[425238521,1781632207000,200.0,0.0001502,2]
[425238531,1781632232000,-315.0,0.00015064,2]
[425238532,1781632232000,-73.27807364,0.00015064,2]
[425238535,1781632232000,-151.0,0.00015064,2]
[425238533,1781632232000,-76.72192636,0.00015064,2]
[425238534,1781632232000,-150.0,0.00015064,2]
[425238536,1781632232000,-63.02449241,0.00015064,2]
[425238537,1781632233000,-87.97550759,0.00015064,2]
[425238539,1781632233000,-152.0,0.00015064,2]
[425238543,1781632233000,-152.0,0.00015064,2]
[425238538,1781632233000,-151.0,0.00015064,2]
[425238544,1781632233000,-151.0,0.00015064,2]
[425238546,1781632233000,-46.02371249,0.00015064,2]
[425238541,1781632233000,-89.02371249,0.00015064,2]
[425238550,1781632233000,-7.97628751,0.00015064,2]
[425238545,1781632233000,-106.97628751,0.00015064,2]
[425238542,1781632233000,-152.0,0.00015064,2]
[425238547,1781632233000,-152.0,0.00015064,2]
[425238548,1781632233000,-150.0,0.00015064,2]
[425238549,1781632233000,-152.0,0.00015064,2]
[425238540,1781632233000,-61.97628751,0.00015064,2]
[425238555,1781632238000,-315.0,0.00015064,2]
[425238557,1781632238000,-139.76852126,0.00015064,2]
[425238556,1781632238000,-142.02371249,0.00015064,2]
[425238567,1781632239000,-300.0,0.00015064,2]
[425238622,1781632240000,-311.0,0.00015065,2]
[425238618,1781632240000,-319.0,0.00015065,2]
[425238632,1781632240000,-312.0,0.00015065,2]
[425238629,1781632240000,-316.0,0.00015065,2]
[425238620,1781632240000,-310.0,0.00015065,2]
[425238616,1781632240000,-320.0,0.00015065,2]
[425238633,1781632240000,-314.0,0.00015065,2]
[425238630,1781632240000,-314.0,0.00015065,2]
[425238634,1781632240000,-316.0,0.00015065,2]
[425238624,1781632240000,-316.0,0.00015065,2]
[425238631,1781632240000,-311.0,0.00015065,2]
[425238628,1781632240000,-313.0,0.00015065,2]
[425238626,1781632240000,-321.0,0.00015065,2]
[425238638,1781632240000,-320.0,0.00015065,2]
[425238639,1781632240000,-318.0,0.00015065,2]
[425238636,1781632240000,-320.0,0.00015065,2]
[425238641,1781632240000,-309.0,0.00015065,2]
[425238642,1781632240000,-310.0,0.00015065,2]
[425238644,1781632240000,-313.0,0.00015065,2]
[425238646,1781632240000,-310.0,0.00015066,2]
[425238643,1781632240000,-318.0,0.00015065,2]
[425238640,1781632240000,-319.0,0.00015065,2]
[425238645,1781632240000,-310.0,0.00015066,2]
[425238648,1781632240000,-317.0,0.00015066,2]
[425238658,1781632240000,-314.0,0.00015066,2]
[425238647,1781632240000,-317.0,0.00015066,2]
[425238637,1781632240000,-321.0,0.00015065,2]
[425238612,1781632240000,-316.0,0.00015065,2]
[425238571,1781632240000,-153.67176388,0.00015064,2]
[425238608,1781632240000,-316.0,0.00015065,2]
[425238568,1781632240000,-500.0,0.00015063,2]
[425238570,1781632240000,-97.05462778,0.00015064,2]
[425238572,1781632240000,-485.58118876,0.00015064,2]
[425238569,1781632240000,-337.04300906,0.00015063,2]
[425238573,1781632240000,-317.0,0.00015065,2]
[425238651,1781632240000,-321.0,0.00015066,2]
[425238574,1781632240000,-151.0,0.00015065,2]
[425238577,1781632240000,-150.0,0.00015065,2]
[425238578,1781632240000,-319.0,0.00015065,2]
[425238576,1781632240000,-312.0,0.00015065,2]
[425238575,1781632240000,-311.0,0.00015065,2]
[425238580,1781632240000,-150.0,0.00015065,2]
[425238583,1781632240000,-151.0,0.00015065,2]
[425238588,1781632240000,-153.0,0.00015065,2]
[425238581,1781632240000,-151.0,0.00015065,2]
[425238579,1781632240000,-311.0,0.00015065,2]
[425238586,1781632240000,-150.0,0.00015065,2]
[425238594,1781632240000,-151.0,0.00015065,2]
[425238602,1781632240000,-150.0,0.00015065,2]
[425238592,1781632240000,-151.0,0.00015065,2]
[425238599,1781632240000,-151.0,0.00015065,2]
[425238604,1781632240000,-313.0,0.00015065,2]
[425238596,1781632240000,-152.0,0.00015065,2]
[425238590,1781632240000,-151.0,0.00015065,2]
[425238606,1781632240000,-315.0,0.00015065,2]
[425238597,1781632240000,-151.0,0.00015065,2]
[425238610,1781632240000,-313.0,0.00015065,2]
[425238614,1781632240000,-315.0,0.00015065,2]
[425238655,1781632240000,-314.0,0.00015066,2]
[425238635,1781632240000,-315.0,0.00015065,2]
[425238653,1781632240000,-318.0,0.00015066,2]
[425238685,1781632240000,-150.99,0.00015067,2]
[425238686,1781632240000,-186.1,0.00015067,2]
[425238689,1781632240000,-152.0,0.00015067,2]
[425238688,1781632240000,-153.0,0.00015067,2]
[425238691,1781632240000,-318.0,0.00015067,2]
[425238690,1781632240000,-313.0,0.00015067,2]
[425238692,1781632240000,-321.0,0.00015067,2]
[425238694,1781632240000,-310.0,0.00015068,2]
[425238706,1781632240000,-151.0,0.00015068,2]
[425238704,1781632240000,-312.0,0.00015068,2]
[425238705,1781632240000,-320.0,0.00015068,2]
[425238693,1781632240000,-320.0,0.00015068,2]
[425238695,1781632240000,-310.0,0.00015068,2]
[425238700,1781632240000,-318.0,0.00015068,2]
[425238701,1781632240000,-311.0,0.00015068,2]
[425238697,1781632240000,-315.0,0.00015068,2]
[425238698,1781632240000,-312.0,0.00015068,2]
[425238703,1781632240000,-319.0,0.00015068,2]
[425238699,1781632240000,-151.0,0.00015068,2]
[425238702,1781632240000,-151.0,0.00015068,2]
[425238707,1781632240000,-310.0,0.00015068,2]
[425238710,1781632240000,-314.0,0.00015068,2]
[425238709,1781632240000,-150.0,0.00015068,2]
[425238711,1781632240000,-151.0,0.00015068,2]
[425238712,1781632240000,-309.0,0.00015068,2]
[425238708,1781632240000,-318.0,0.00015068,2]
[425238654,1781632240000,-317.0,0.00015066,2]
[425238687,1781632240000,-9999.99,0.00015067,2]
[425238684,1781632240000,-39894.55,0.00015067,2]
[425238696,1781632240000,-150.0,0.00015068,2]
[425238682,1781632240000,-311.0,0.00015067,2]
[425238652,1781632240000,-314.0,0.00015066,2]
[425238683,1781632240000,-313.0,0.00015067,2]
[425238649,1781632240000,-310.0,0.00015066,2]
[425238657,1781632240000,-315.0,0.00015066,2]
[425238650,1781632240000,-313.0,0.00015066,2]
[425238656,1781632240000,-309.0,0.00015066,2]
[425238666,1781632240000,-151.0,0.00015066,2]
[425238659,1781632240000,-310.0,0.00015066,2]
[425238665,1781632240000,-152.0,0.00015066,2]
[425238660,1781632240000,-311.0,0.00015066,2]
[425238662,1781632240000,-320.0,0.00015066,2]
[425238669,1781632240000,-151.0,0.00015066,2]
[425238663,1781632240000,-153.0,0.00015066,2]
[425238661,1781632240000,-317.0,0.00015066,2]
[425238664,1781632240000,-151.0,0.00015066,2]
[425238676,1781632240000,-151.0,0.00015067,2]
[425238680,1781632240000,-316.0,0.00015067,2]
[425238667,1781632240000,-150.0,0.00015066,2]
[425238677,1781632240000,-317.0,0.00015067,2]
[425238678,1781632240000,-311.0,0.00015067,2]
[425238679,1781632240000,-150.0,0.00015067,2]
[425238674,1781632240000,-309.0,0.00015067,2]
[425238675,1781632240000,-152.0,0.00015067,2]
[425238670,1781632240000,-312.0,0.00015067,2]
[425238672,1781632240000,-317.0,0.00015067,2]
[425238671,1781632240000,-151.0,0.00015067,2]
[425238681,1781632240000,-316.0,0.00015067,2]
[425238668,1781632240000,-153.0,0.00015066,2]
[425238673,1781632240000,-310.0,0.00015067,2]
[425238756,1781632241000,-500.0,0.00015068,7]
[425238762,1781632241000,-500.0,0.00015068,7]
[425238758,1781632241000,-500.0,0.00015068,7]
[425238754,1781632241000,-500.0,0.00015068,7]
[425238759,1781632241000,-500.0,0.00015068,7]
[425238751,1781632241000,-500.0,0.00015068,7]
[425238749,1781632241000,-500.0,0.00015068,7]
[425238753,1781632241000,-500.0,0.00015068,7]
[425238755,1781632241000,-500.0,0.00015068,7]
[425238752,1781632241000,-500.0,0.00015068,7]
[425238760,1781632241000,-500.0,0.00015068,7]
[425238764,1781632241000,-500.0,0.00015068,7]
[425238757,1781632241000,-500.0,0.00015068,7]
[425238765,1781632241000,-615.86,0.00015068,7]
[425238779,1781632241000,-200.0,0.00015475,2]
[425238763,1781632241000,-500.0,0.00015068,7]
[425238772,1781632241000,-200.0,0.0001517,2]
[425238767,1781632241000,-160.0,0.0001508,2]
[425238775,1781632241000,-200.0,0.00015322,2]
[425238774,1781632241000,-200.0,0.00015322,2]
[425238770,1781632241000,-312.0,0.00015168,2]
[425238771,1781632241000,-200.0,0.0001517,2]
[425238769,1781632241000,-166.66,0.0001515,2]
[425238773,1781632241000,-150.0,0.0001523,2]
[425238768,1781632241000,-151.0,0.0001512,2]
[425238777,1781632241000,-166.66,0.00015462,2]
[425238781,1781632241000,-150.0,0.00015531,2]
[425238761,1781632241000,-500.0,0.00015068,7]
[425238766,1781632241000,-160.0,0.00015073,2]
[425238750,1781632241000,-500.0,0.00015068,7]
[425238715,1781632241000,-320.0,0.00015068,2]
[425238748,1781632241000,-500.0,0.00015068,7]
[425238717,1781632241000,-151.0,0.00015068,2]
[425238716,1781632241000,-318.0,0.00015068,2]
[425238719,1781632241000,-311.0,0.00015068,2]
[425238713,1781632241000,-151.0,0.00015068,2]
[425238718,1781632241000,-151.0,0.00015068,2]
[425238714,1781632241000,-321.0,0.00015068,2]
[425238721,1781632241000,-150.0,0.00015068,2]
[425238731,1781632241000,-313.0,0.00015068,2]
[425238733,1781632241000,-150.0,0.00015068,2]
[425238735,1781632241000,-318.0,0.00015068,2]
[425238722,1781632241000,-316.0,0.00015068,2]
[425238734,1781632241000,-318.0,0.00015068,2]
[425238720,1781632241000,-311.0,0.00015068,2]
[425238723,1781632241000,-316.0,0.00015068,2]
[425238736,1781632241000,-310.0,0.00015068,2]
[425238727,1781632241000,-150.0,0.00015068,2]
[425238725,1781632241000,-151.0,0.00015068,2]
[425238724,1781632241000,-314.0,0.00015068,2]
[425238729,1781632241000,-309.0,0.00015068,2]
[425238737,1781632241000,-152.0,0.00015068,2]
[425238739,1781632241000,-312.0,0.00015068,2]
[425238740,1781632241000,-318.0,0.00015068,2]
[425238744,1781632241000,-500.0,0.00015068,7]
[425238738,1781632241000,-153.0,0.00015068,2]
[425238741,1781632241000,-153.0,0.00015068,2]
[425238743,1781632241000,-311.0,0.00015068,2]
[425238747,1781632241000,-500.0,0.00015068,7]
[425238742,1781632241000,-319.0,0.00015068,2]
[425238746,1781632241000,-500.0,0.00015068,7]
[425238745,1781632241000,-500.0,0.00015068,7]
[425238778,1781632241000,-5921.24495216,0.0001547,3]
[425238780,1781632241000,-200.0,0.00015475,2]
[425238786,1781632241000,-155.83,0.00015618,2]
[425238816,1781632241000,-2500.0,0.0001657,2]
[425238815,1781632241000,-230.84,0.00016438,2]
[425238825,1781632241000,-200.0,0.0001657,2]
[425238827,1781632241000,-195.0,0.0001657,2]
[425238818,1781632241000,-2500.0,0.0001657,2]
[425238826,1781632241000,-250.0,0.0001657,2]
[425238820,1781632241000,-2500.0,0.0001657,2]
[425238819,1781632241000,-2500.0,0.0001657,2]
[425238824,1781632241000,-600.0,0.0001657,2]
[425238822,1781632241000,-150.0,0.0001657,2]
[425238823,1781632241000,-300.0,0.0001657,2]
[425238821,1781632241000,-195.0,0.0001657,2]
[425238829,1781632241000,-195.0,0.0001657,2]
[425238837,1781632241000,-168.64,0.00016712,2]